Cogmind - Beta 9.3 @@@ ROGUE MODE // 2019.12.18 @ 03:14:10 // Winter2019/RPGLIKE Player: eldritch Result: Destroyed by Y-45 Defender with Beam Rifle Performance ------------- Evolutions (1) 500 Regions Visited (2) 400 Robots Destroyed (6) 30 Value Destroyed (154) 154 Prototype IDs (0) 0 Alien Tech Used (0) 0 Bonus (0) 0 TOTAL SCORE: 1084 Bonus ------- None Cogmind --------- Core Integrity 0/600 Matter 136/300 Energy 250/250 System Corruption 0% Temperature Cool (44) Movement Core (50) Location -9/Materials Parts ------- > --- POWER (1) -------- Ion Engine > --- PROPULSION (1) --- Hover Unit > --- UTILITY (1) ------ Light Armor Plating > --- WEAPON (2) ------- Assault Rifle Assault Rifle > --- INVENTORY (3) ---- Sensor Array Light Cannon Grenade Launcher Peak State ------------ > --- POWER ------------ Ion Engine > --- PROPULSION ------- Hover Unit > --- UTILITY ---------- Light Armor Plating > --- WEAPON ----------- Assault Rifle Assault Rifle > --- INVENTORY -------- Light Cannon Grenade Launcher [Rating: 5] Favorites ----------- Power Ion Engine Engine Ion Engine Propulsion Hover Unit Leg Aluminum Leg Hover Unit Hover Unit Utility Light Armor Plating Protection Light Armor Plating Weapon Assault Rifle Ballistic Gun Assault Rifle Build | -11 -10 -9 ------- Run | Scr Mat Mat Slots Evolved 1 | . 1 . Power . | . . . Propulsion . | . . . Utility . | . . . Weapon 1 | . 1 . Parts Attached 3 | . 2 1 Power . | . . . Engine . | . . . Core . | . . . Reactor . | . . . Propulsion 1 | . . 1 Treads . | . . . Leg . | . . . Wheel . | . . . Hover 1 | . . 1 Flight . | . . . Utility 1 | . 1 . Device . | . . . Storage . | . . . Processor . | . . . Hackware . | . . . Protection 1 | . 1 . Artifact . | . . . Weapon 1 | . 1 . Energy Gun . | . . . Energy Cannon . | . . . Ballistic Gun 1 | . 1 . Ballistic Cannon . | . . . Launcher . | . . . Special Weapon . | . . . Impact Weapon . | . . . Slashing Weapon . | . . . Piercing Weapon . | . . . Special Melee Weapon . | . . . Unidentified Prototypes . | . . . Parts Lost . | . . . Power . | . . . Propulsion . | . . . Utility . | . . . Weapon . | . . . Highest Loss Streak . | . . . Average Slot Usage (%) 78 | . 70 92 Engine 21 | . 21 20 Hover 4 | . . 12 Protection 16 | . 14 20 Ballistic Gun 36 | . 34 40 Naked Turns . | . . . Heaviest Build 12 | 7 12 12 Greatest Support 23 | 10 13 23 Greatest Overweight (x) . | . . . Average Overweight (x) . | . . . Largest Inventory Capacity 3 | . 2 3 Average Capacity 1 | . 1 2 Most Carried 3 | . 1 3 Average Carried 1 | . . 2 Final Capacity 3 | . 2 3 Final Carried 3 | . 1 3 Class Distribution -------------------- 100% | Mutant Dominant Class ---------------- Mutant | -10/Materials Mutant | -9/Materials Resources | -11 -10 -9 ----------- Run | Scr Mat Mat Matter Collected 288 | 200 88 . Remotely . | . . . Salvage Created 165 | . 88 77 Parts 15 | . 10 5 Haulers Intercepted . | . . . Recyclers Shooed . | . . . Parts Field Recycled . | . . . Retrieved Matter . | . . . Parts Self-Destructed . | . . . Prevented . | . . . Kills | -11 -10 -9 ------- Run | Scr Mat Mat Combat Hostiles Destroyed 3 | . 2 1 Guns 3 | . 2 1 Classes Destroyed 4 | . 2 2 Builder 2 | . 2 . Watcher 1 | . . 1 Grunt 2 | . 2 . Duelist 1 | . . 1 Best Kill Streak 2 | . 2 1 Combat Bots Only 1 | . 1 1 Max Kills in Single Turn 1 | . 1 1 Gunslinging . | . . . Exploded . | . . . Melee . | . . . Uniques/NPCs Destroyed . | . . . Combat | -11 -10 -9 -------- Run | Scr Mat Mat Damage Taken 744 | . 338 406 Core 601 | . 270 331 Absorbed by Shields . | . . . Redirected to Core 492 | . 226 266 Core Remaining (%) 77 | 100 55 . Volleys Fired 42 | . 31 11 Largest 2 | . 2 2 Hottest 40 | . 40 40 Shots Fired 74 | . 52 22 Gun 74 | . 52 22 Cannon . | . . . Launcher . | . . . Special . | . . . Kinetic 74 | . 52 22 Thermal . | . . . Explosive . | . . . Electromagnetic . | . . . Robot Hit Streak 10 | . 7 10 Robot Miss Streak 3 | . 3 2 Penetration Max . | . . . Secondary Targets 1 | . . 1 Max Gunslinging Chain 1 | . . 1 Shots Hit Robots 49 | . 31 18 Core Hits 14 | . 8 6 Critical Hits . | . . . Critical Kills . | . . . Critical Parts Destroyed . | . . . Melee Attacks . | . . . Impact . | . . . Slashing . | . . . Piercing . | . . . Sneak Attacks . | . . . Combat Hostiles . | . . . Follow-up Attacks . | . . . Damage Inflicted 641 | . 423 218 Guns 641 | . 423 218 Cannons . | . . . Explosions . | . . . Melee . | . . . Ramming . | . . . Kinetic 641 | . 423 218 Thermal . | . . . Explosive . | . . . Electromagnetic . | . . . Impact . | . . . Slashing . | . . . Piercing . | . . . Highest Corruption . | . . . Average Corruption . | . . . Corruption Purged . | . . . Overload Shots . | . . . Overflow Damage . | . . . Projectiles . | . . . Explosions . | . . . Melee . | . . . Knockbacks . | . . . Impact . | . . . Kinetic . | . . . Secondary . | . . . Self-Inflicted Damage . | . . . Shots . | . . . Rammed . | . . . Targets Rammed . | . . . Kicked . | . . . Crushed . | . . . Highest Temperature 29 | . 13 29 Average Temperature 6 | . 5 9 Received Heat Transfer 306 | . 192 114 Siege Activations . | . . . Robots Corrupted . | . . . Combat Hostiles . | . . . Parts Fried . | . . . Impact Corruptions . | . . . Robots Melted . | . . . Combat Hostiles . | . . . Parts Melted . | . . . Heat Transferred . | . . . Parts Sabotaged . | . . . Parts Stolen . | . . . Parts Stripped . | . . . Power Chain Reactions . | . . . Missiles Intercepted . | . . . Alert | -11 -10 -9 ------- Run | Scr Mat Mat Peak Influence 112 | . 60 112 Average Influence 26 | . 15 46 Maximum Alert Level . | . . . Low Security (%) 100 | 100 100 100 Level 1 . | . . . Level 2 . | . . . Level 3 . | . . . Level 4 . | . . . Level 5 . | . . . High Security . | . . . Max Security . | . . . Squads Dispatched 2 | . . 2 Investigation . | . . . Extermination . | . . . Reinforcement 2 | . . 2 Assault . | . . . Garrison . | . . . Intercept . | . . . Construction Impeded . | . . . Haulers Reinforced . | . . . Stealth | -11 -10 -9 --------- Run | Scr Mat Mat Distress Signals . | . . . Communications Jammed . | . . . Distress Signals . | . . . Times Spotted 14 | . 5 9 Peak Tracking Total 7 | . 3 7 Tactical Retreats 1 | . 1 . Traps | -11 -10 -9 ------- Run | Scr Mat Mat Traps Triggered . | . . . Indirectly . | . . . Trap Hack Attempts . | . . . Triggered . | . . . Disarmed . | . . . Reprogrammed . | . . . Reused . | . . . Traps Extracted . | . . . Installed . | . . . Triggered . | . . . Machines | -11 -10 -9 ---------- Run | Scr Mat Mat Machines Disabled . | . . . Max in Single Turn . | . . . Machines Sabotaged . | . . . Garrisons Compromised . | . . . Overloaded Fab Kills . | . . . Fab Network Shutdowns . | . . . Hacking | -11 -10 -9 --------- Run | Scr Mat Mat Machines Accessed 2 | . . 2 Terminals 2 | . . 2 Fabricators . | . . . Repair Stations . | . . . Recycling Units . | . . . Scanalyzers . | . . . Garrison Access . | . . . Total Hacks 6 | . . 6 Successful 4 | . . 4 Failed 2 | . . 2 Catastrophic 1 | . . 1 Database Lockouts . | . . . Manual 6 | . . 6 Terminals 6 | . . 6 Fabricators . | . . . Repair Stations . | . . . Recycling Units . | . . . Scanalyzers . | . . . Garrison Access . | . . . Terminal Hacks 1 | . . 1 Recall Reinforcements 1 | . . 1 Fabricator Hacks . | . . . Repair Station Hacks . | . . . Recycling Unit Hacks . | . . . Scanalyzer . | . . . Garrison Access Hacks . | . . . Unauthorized Hacks 7 | . . 7 Terminals 3 | . . 3 Track 1 | . . 1 Botnet 2 | . . 2 Fabricators . | . . . Repair Stations . | . . . Recycling Units . | . . . Scanalyzers . | . . . Garrison Access . | . . . Data Cores Recovered . | . . . Used . | . . . Hacking Detections 2 | . . 2 Full Trace Events . | . . . Feedback Events . | . . . Feedback Blocked . | . . . Robot Schematics Acquired . | . . . Robots Built . | . . . Matter . | . . . Time . | . . . Total Robot Build Rating . | . . . Part Schematics Acquired . | . . . Parts Built . | . . . Matter . | . . . Time . | . . . Total Part Build Rating . | . . . Parts Repaired . | . . . Time . | . . . Parts Recycled . | . . . Recycled Matter . | . . . Retrieved Matter . | . . . Retrieved Components . | . . . Parts Scanalyzed . | . . . Part Schematics Acquired . | . . . Parts Damaged . | . . . Bothacking | -11 -10 -9 ------------ Run | Scr Mat Mat Used RIF Installer . | . . . Robots Hacked . | . . . Non-combat . | . . . Combat . | . . . Robot Hacks Applied . | . . . Relay Couplers Released . | . . . Robots Rewired . | . . . Allies Hacked . | . . . Hacks Repelled . | . . . Allies | -11 -10 -9 -------- Run | Scr Mat Mat Total Allies . | . . . Largest Group . | . . . Highest-Rated Group . | . . . Highest-Rated Ally . | . . . Total Orders . | . . . Ally Attacks . | . . . Total Damage . | . . . Kills . | . . . Allies Corrupted . | . . . Allies Melted . | . . . Intel | -11 -10 -9 ------- Run | Scr Mat Mat Robot Analysis Total . | . . . Derelict Logs Recovered . | . . . Drone Launches . | . . . Drone Recoveries . | . . . Exploration | -11 -10 -9 ------------- Run | Scr Mat Mat Turns Passed 278 | 2 176 100 Spaces Moved 300 | 2 172 126 Core 294 | . 168 126 Treads . | . . . Legs 6 | 2 4 . Wheels . | . . . Hover . | . . . Flight . | . . . Fastest Speed 50 | 120 50 50 Average Speed 51 | 120 51 50 Slowest Speed 120 | 120 120 50 Overloaded Moves . | . . . Propulsion Burnouts . | . . . Robots Hopped . | . . . Cave-ins Triggered . | . . . Exploration Rate (%) 21 | 2 49 14 Regions Visited 2 Branch Regions . Pre-discovered Areas . | . . . Known Exits Taken . | . . . Unknown Exits Taken 2 | 1 1 . Scrap Searched . | . . . Spaces Dug . | . . . Terrain Destroyed . | . . . Melee . | . . . Projectile . | . . . AOE . | . . . Actions | -11 -10 -9 --------- Run | Scr Mat Mat Total 348 | 1 206 141 Wait 1 | . . 1 Move 298 | 1 171 126 Hop . | . . . Pick Up 3 | . 1 2 Fast Attach 3 | . 2 1 Attach . | . . . Detach . | . . . Swap . | . . . Drop 1 | . 1 . Fire 42 | . 31 11 Melee . | . . . Ram . | . . . Kick . | . . . Crush . | . . . Escape Stasis . | . . . Rewire . | . . . Trap . | . . . Miscellaneous . | . . . Route ------- -11/Scrapyard -10/Materials (discovered 2 exits: *Mat / [*Min]) -9/Materials (discovered 1 exit: [*Min]) History --------- Turn | Location | Event 1 | -11/Scrapyard | Discovered new exit (range 1) 3 | -11/Scrapyard | Entered Materials 46 | -10/Materials | Discovered new exit (range 14) 60 | -10/Materials | Upgraded with Weapon slot (x1) 168 | -10/Materials | Discovered new exit (range 17) 179 | -10/Materials | Entered another Materials area 181 | -9/Materials | Reached level 2 246 | -9/Materials | Discovered new exit (range 17) 262 | -9/Materials | Core integrity fell below 50% 275 | -9/Materials | Core integrity fell below 20% 279 | -9/Materials | Destroyed by Y-45 Defender with Beam Rifle Last Messages --------------- 00224_ R-06 Scavenger collects Visual Processing Unit. 00231_ Connecting with Terminal... >>Trojan(Botnet) Trojan loaded successfully. Testing... Terminal linked with 1 system. Awaiting botnet instructions. >>Recall(Reinforcements) Establishing remote squad link... Recalled reinforcement squad ZJ9C71XEN3. 00246_ EXIT=FOUND 00250_ T-07 Excavator is excavating. 00253_ O-16 Technician: "IFF HANDSHAKE FAILED. SECURING TERMINAL." 00254_ T-07 Excavator is excavating. 00254_ ALERT: Hostiles spotted, dispatching reinforcements to Terminal M006. 00259_ T-07 Excavator is excavating. 00277_ L-31 Rogue destroyed. 00277_ Switching to secondary target: Y-45 Defender. 00279_ U-05 Engineer lays Concrete. Map ----- +----------------------------------------------------+ | ?????????????????????????????????????????????????? | | ?????????????????????????????????????????????????? | | ?????????????????????????????????????????????????? | | ?????????????????????????????????????????????????? | | ?????????????????????????????????????????????????? | | ?????????????????????????????????????????????????? | | ?????????????????????????????????????????????????? | | ?????????????????????????????????????????????????? | | ??????????????????????????? ?????????????????????? | | ??????????????????????????? ????????????????????? | | ?????????????????????????? ????????????????????? | | ?????????????????????????? ????????????????????? | | ?????????????????????????? ????????????????????? | | ?????????????????????????? """ ?????????????????? | | ??????????????????????????w """??????????????????? | | ?????????????????????????? """??????????????????? | | ??????????????????????????a ???????????????????? | | ?????????????????????????? ???????????????????? | | ?????????????????????????# #???????????????????? | | ????????????????????????## ####????????????????? | | ????????????????????????# """#????????????????? | | ????????????????????????# "#????????????????? | | ????????????????????????# !"#????????????????? | | ????????????????????????# < ""#????????????????? | | ????????????????????????# |"#????????????????? | | ????????????????????????#@ "#????????????????? | | ????????????????????????#/%Y """#????????????????? | | ??????????????######+#####g ####????????????????? | | ??????????????# != T #Y # #?????????????????? | | ???????????????# == + u #???????????? #???? | | ???????????????# = # # #??????????? #???? | | ???????????????# !# #########?????? #???? | | ???????????????########### # #??#### ##??? | | ??????????????????# # # #??# ###? | | ??????????????????# + + #??? ?? | | ??????????????????# # # #??? T ?? | | ??????????????????#!! [# # #??? ??? | | ??????????????????#!! ! ?# ###+###+#??? [ ???? | | ??????????????????#!! ?# ### ### ###?# #???? | | ??????????????????### #??# #?# #???? | | ????????????????????##???# #?# #???? | | ?????????????????????????# #?# #???? | | ?????????????????????????###########+#+### #???? | | ????????????????????????????# + ##### | | ????????????????????????????# """ """ # # | | ????????????????????????????# """ R" # # | | ????????????????????????????# """ """ # # | | ????????????????????????????? # # | | ??????????????############################ + | | ?????????????? % #"" | +----------------------------------------------------+ Best States ------------- Heat Dissipation 25 Energy Generation 10 Energy Capacity 250 Matter Stores 300 Matter Capacity 300 Sight Range 18 Terrain Scan Density 10 Armor Coverage 150 Evasion (%) 50 Item Schematics ----------------- None Robot Schematics ------------------ None Fabricated ------------ Nothing Alien Tech Used ----------------- None Achievements -------------- None Challenges ------------ None RPGLIKE | -11 -10 -9 --------- Run | Scr Mat Mat Levels Raised 1 | . . 1 XP Earned 4935 | 3000 250 1685 XP Spent 4300 | . 2850 1450 Upgrades 12 | . 9 3 Weapon Slot 1 | . 1 . Mass Support 4 | . 2 2 Inventory Capacity 3 | . 2 1 Sight Range 2 | . 2 . Ranged Accuracy 2 | . 2 . Protomatter Created 32 | . 32 . Protomatter Decayed 32 | . 32 . Game ------ Seed BiometalAdvancedAmplifier Manual? 0 Play Time 00:06:58 Cumulative 194.9 hours Start 2019.12.18 @ 03:09:23 End 2019.12.18 @ 03:14:10 Sessions 1 Manual Loads 0 Difficulty Rogue Special Mode Winter2019/RPGLIKE Game No. 402 Rogue 402 Adventurer 0 Explorer 0 Win Type - Total 3 Types 3/0/0/0/0/0/0 Lore% 52 Gallery% 60 Achievement% 47 Wizard Run 0 Options --------- ASCII 0 Keyboard 0 Movement Arrows Keybinds 0 Fullscreen 1 Font 18/SmallcapsGlow Map View 76x50 Tactical HUD 1 Map Filters NONE Filters NONE Steam 1 RUN: 89e090b9-4d42-4859-8f9b-b4f4ccd9801e